bitfinex/quotes_ETHUSD_20250810
["timestamp","ask_amount","ask_price","bid_price","bid_amount"]
[1754860880229,0.9565,4215.6,4215.4,0.1184]
[1754860880650,0.9565,4215.5,4215.4,2.49065411]
[1754860880832,0.36741581,4216.0,4215.4,3.7834]
[1754860881035,0.9565,4215.5,4215.4,6.15565411]
[1754860883751,0.9565,4215.5,4215.4,3.7834]
[1754860884049,0.9565,4215.5,4215.4,6.15565411]
[1754860885051,0.11840001,4216.1,4215.7,2.37204491]
[1754860885052,1.07490001,4216.1,4215.7,2.37204491]
[1754860885253,0.40749,4216.0,4215.7,6.03604491]
[1754860885563,1.36399,4216.0,4215.8,0.1184]
[1754860886720,1.36399,4216.0,4215.8,2.49041804]
[1754860886946,0.9565,4215.9,4215.8,0.1184]
[1754860889649,0.9565,4215.9,4215.3,2.37231039]
[1754860889831,0.9565,4215.9,4215.6,2.37213232]
[1754860890032,0.9565,4215.8,4215.4,2.4906406]
[1754860890234,0.1184,4216.0,4215.4,2.4906406]
[1754860890235,0.495,4215.7,4215.4,2.4906406]
[1754860890547,0.495,4215.6,4214.9,2.37252053]
[1754860890748,0.4615,4215.5,4215.2,0.1184]
[1754860890928,2.83374333,4215.5,4214.7,6.03760656]
[1754860891120,1.52658368,4215.4,4215.0,0.1184]
[1754860891620,0.9565,4215.3,4215.0,0.1184]
[1754860892263,0.9565,4215.2,4215.1,0.001]
[1754860893936,6.32886667,4215.2,4215.1,0.001]
[1754860894138,3.9565,4215.2,4215.1,0.001]
[1754860894339,4.83606338,4215.2,4215.1,0.001]
[1754860897339,4.37456338,4215.2,4215.1,0.001]
[1754860898563,3.87956338,4215.2,4215.1,0.001]
[1754860901367,6.25193005,4215.2,4215.1,0.001]
[1754860901666,4.83606338,4215.2,4215.1,0.001]
[1754860902347,3.87956338,4215.2,4215.1,0.001]
[1754860904166,3.76116338,4215.2,4215.1,0.001]
[1754860904362,3.0,4215.2,4215.1,0.001]
[1754860913941,6.661,4215.2,4215.1,0.001]
[1754860917074,9.03336667,4215.2,4215.1,0.001]
[1754860917275,9.95756667,4215.2,4215.1,0.001]
[1754860917477,11.24755152,4215.2,4215.1,0.001]
[1754860917775,15.24755152,4215.2,4215.1,0.001]
[1754860918074,15.36595152,4215.2,4215.1,0.001]
[1754860918275,11.36595152,4215.2,4215.1,0.001]
[1754860918676,8.99358485,4215.2,4215.1,0.001]
[1754860920073,8.06938485,4215.2,4215.1,0.001]
[1754860920279,8.57926447,4215.2,4215.1,0.001]
[1754860921088,8.06938485,4215.2,4215.1,0.001]
[1754860921410,8.57928781,4215.2,4215.1,0.001]
[1754860921569,10.95165448,4215.2,4215.1,0.001]
[1754860921897,11.99605054,4215.2,4215.1,0.001]
[1754860922271,15.99605054,4215.2,4215.1,0.001]
[1754860922817,13.62368387,4215.2,4215.1,0.001]
[1754860923660,13.29228387,4215.2,4215.1,0.001]
[1754860923959,12.80058387,4215.2,4215.1,0.001]
[1754860924594,12.57928781,4215.2,4215.1,0.001]
[1754860924964,12.80055796,4215.2,4215.1,0.001]
[1754860925396,12.57928781,4215.2,4215.1,0.001]
[1754860926064,12.80055315,4215.2,4215.1,0.001]
[1754860926264,12.57928781,4215.2,4215.1,0.001]
[1754860929002,13.72474201,4215.2,4215.1,0.001]
[1754860929314,16.09710868,4215.2,4215.1,0.001]
[1754860929813,16.09710244,4215.2,4215.1,0.001]
[1754860929998,13.72473577,4215.2,4215.1,0.001]
[1754860930711,12.80053577,4215.2,4215.1,0.001]
[1754860931891,12.57928781,4215.2,4215.1,0.001]
[1754860934825,12.06938485,4215.2,4215.1,0.001]
[1754860936430,8.06938485,4215.2,4215.1,0.001]
[1754860937105,7.17,4216.3,4215.1,0.9286]
[1754860937106,3.657,4215.3,4215.1,0.9286]
[1754860937430,3.656,4215.7,4215.6,2.37209878]
[1754860937590,4.0,4215.7,4215.6,3.29449878]
[1754860938578,1e-08,4216.1,4216.0,2.3719165]
[1754860938705,3.65600001,4216.1,4216.0,2.3719165]
[1754860938899,3.65600001,4216.1,4216.0,2.4903165]
[1754860939100,1e-08,4216.1,4216.0,3.4127165]
[1754860939301,4.00000001,4216.1,4216.0,3.4127165]
[1754860939525,1e-08,4216.1,4216.0,3.4127165]
[1754860940312,3.65600001,4216.1,4216.0,3.4127165]
[1754860942125,1e-08,4216.1,4216.0,3.4127165]
[1754860952450,1e-08,4216.1,4216.0,7.0657165]
[1754860964684,1e-08,4216.1,4216.0,7.6157165]
[1754860966392,0.002,4216.6,4216.0,7.6157165]
[1754860966393,1e-08,4216.6,4216.5,2.92163524]
[1754860966596,1e-08,4216.6,4216.5,6.57063524]
[1754860966763,1e-08,4216.6,4216.5,7.49303524]
[1754860966963,1e-08,4216.9,4216.8,2.37146651]
[1754860967163,1e-08,4217.0,4216.9,2.37141027]
[1754860967589,1e-08,4217.0,4216.9,3.29941027]
[1754860968103,1e-08,4217.0,4216.9,3.84941027]
[1754860976921,1e-08,4217.0,4216.9,2.92141027]
[1754860977801,1e-08,4217.0,4216.9,3.35241027]
[1754860979033,1e-08,4217.0,4216.9,3.84941027]
[1754860979705,1e-08,4217.0,4216.9,3.35241027]
[1754860980024,1e-08,4217.0,4216.9,3.84941027]
[1754860980920,1e-08,4217.0,4216.9,3.35241027]
[1754860981937,1e-08,4217.0,4216.9,3.84941027]
[1754860983859,1e-08,4217.0,4216.9,2.92141027]
[1754860984026,1e-08,4217.0,4216.9,3.35241027]
[1754860984761,1e-08,4217.0,4216.9,2.92141027]
[1754860985268,1e-08,4217.0,4216.9,2.37141027]
[1754860995561,0.31340001,4217.0,4216.9,2.37141027]
[1754861000997,0.44720001,4217.0,4216.8,2.48984957]
[1754861001202,0.44720001,4217.0,4216.9,2.37141027]
[1754861001500,0.4472,4216.9,4216.8,0.1184]
[1754861001696,0.72905032,4216.9,4216.5,0.1184]
[1754861002099,0.4472,4216.8,4216.5,0.1184]
[1754861003872,0.4472,4216.8,4216.5,2.49003055]
[1754861005698,0.4472,4216.8,4216.6,2.37157379]
[1754861006090,0.4472,4216.7,4216.6,2.37157379]
[1754861006314,1e-08,4217.0,4216.9,2.37141027]
[1754861006704,1e-08,4217.0,4216.9,2.48981027]
[1754861007921,1e-08,4217.0,4216.9,2.93101027]
[1754861009725,1e-08,4217.0,4216.9,3.39561027]
[1754861014201,1e-08,4217.0,4216.9,2.48981027]
[1754861014400,1e-08,4217.0,4216.9,2.93101027]
[1754861015219,1e-08,4217.0,4216.9,3.39561027]
[1754861015930,1e-08,4217.0,4216.9,2.48981027]
[1754861016134,1e-08,4217.0,4216.9,2.93101027]
[1754861016427,1e-08,4217.0,4216.9,3.39561027]
[1754861017302,1e-08,4217.0,4216.9,2.93101027]
[1754861017503,1e-08,4217.0,4216.9,2.48981027]
[1754861027543,1e-08,4217.0,4216.9,2.93651027]
[1754861027743,1e-08,4217.0,4216.9,3.39431027]
[1754861036281,0.002,4217.5,4217.4,2.37112913]
[1754861036504,0.002,4217.5,4217.4,6.00712913]
[1754861036677,0.002,4217.5,4217.4,2.48952913]
[1754861037000,0.002,4217.5,4217.4,6.12552913]
[1754861043677,0.002,4217.5,4217.4,6.12352913]
[1754861051011,0.002,4217.5,4217.4,7.02802913]
[1754861052153,0.042,4217.9,4217.4,7.02802913]
[1754861052355,0.22100688,4219.1,4218.0,2.37079184]
[1754861052577,0.22100688,4219.1,4217.8,2.84212298]
[1754861052578,0.1184,4219.2,4218.8,2.37034227]
[1754861052728,0.5912,4219.2,4218.8,6.00334227]
[1754861052933,0.1184,4219.2,4218.8,6.00334227]
[1754861053153,0.4353,4219.5,4218.8,6.12174227]
[1754861053353,0.9081,4219.5,4218.8,6.12174227]
[1754861053663,0.9081,4219.3,4218.8,6.12174227]
[1754861059405,0.04,4219.9,4218.8,0.1184]
[1754861059406,0.9303,4218.9,4218.8,0.1184]
[1754861059901,1.26035232,4218.9,4218.6,0.1184]
[1754861060204,0.8903,4218.8,4218.6,0.1184]
[1754861060487,3.1184,4218.7,4218.0,0.1184]
[1754861060663,0.8903,4218.6,4218.0,2.48918194]
[1754861061001,1.22821132,4218.5,4218.0,0.1184]
[1754861061407,0.33791132,4218.5,4218.0,0.1184]
[1754861061601,0.8903,4218.4,4218.0,2.48918761]
[1754861061894,0.8903,4218.3,4218.0,2.48918761]
[1754861062196,0.8903,4218.3,4218.0,0.1184]
[1754861062504,0.33791132,4218.5,4218.2,2.37066696]
[1754861062723,0.5493,4218.7,4218.2,2.37066696]
[1754861062928,1.29517,4218.6,4218.0,6.12018183]
[1754861063077,0.8903,4218.6,4218.1,2.37073142]
[1754861063415,0.8903,4218.5,4218.1,2.37073142]
[1754861063821,0.1184,4218.7,4218.0,0.1184]
[1754861063822,0.4594,4218.4,4218.0,0.1184]
[1754861063978,2.37073563,4218.1,4217.3,2.37117166]
[1754861064174,3.0,4218.2,4217.6,0.1184]
[1754861064175,0.8903,4218.0,4217.6,0.1184]
[1754861064616,0.33793863,4217.9,4217.6,0.1184]
[1754861064832,2.37094752,4217.8,4217.6,0.1184]
[1754861065027,33.8903,4217.7,4217.6,0.1184]
[1754861065324,33.8903,4217.7,4216.5,3.631]
[1754861065325,2.37113496,4217.4,4216.5,3.631]
[1754861065527,2.37129781,4217.1,4216.6,0.1184]
[1754861065828,0.1184,4216.9,4216.5,0.001]
[1754861065980,3.1184,4216.9,4216.5,0.001]
[1754861066180,2.48982313,4216.9,4216.5,0.001]
[1754861066393,0.8903,4216.8,4216.5,0.001]
[1754861066792,0.8903,4216.7,4216.5,0.001]
[1754861066996,0.3380212,4216.6,4216.5,0.001]
[1754861067286,1.2283212,4216.6,4216.5,0.001]
[1754861067925,3.59990019,4216.6,4216.5,0.001]
[1754861068128,36.71830019,4216.6,4216.5,0.001]
[1754861068486,36.93802188,4216.6,4216.5,0.001]
[1754861068720,37.48802188,4216.6,4216.5,0.001]
[1754861070085,40.89930019,4216.6,4216.5,0.001]
[1754861071387,44.89930019,4216.6,4216.5,0.001]
[1754861077097,41.26830019,4216.6,4216.5,0.001]
[1754861077423,13.45900019,4216.6,4216.5,0.001]
[1754861077792,14.34930019,4216.6,4216.5,0.001]
[1754861078227,9.45900019,4216.6,4216.5,0.001]
[1754861078806,10.34930019,4216.6,4216.5,0.001]
[1754861080327,9.45900019,4216.6,4216.5,0.001]
[1754861081226,13.45900019,4216.6,4216.5,0.001]
[1754861083626,9.45900019,4216.6,4216.5,0.001]
[1754861086644,13.45900019,4216.6,4216.5,0.001]
[1754861088130,13.67813801,4216.6,4216.5,0.001]
[1754861088741,14.61043801,4216.6,4216.5,0.001]
[1754861089262,15.11591855,4216.6,4216.5,0.001]
[1754861089620,15.11591593,4216.6,4216.5,0.001]
[1754861090155,15.11617477,4216.6,4216.5,0.001]
[1754861090820,14.18387477,4216.6,4216.5,0.001]
[1754861091013,14.18402866,4216.6,4216.5,0.001]
[1754861092238,10.55302866,4216.6,4216.5,0.001]
[1754861092443,14.18302866,4216.6,4216.5,0.001]
[1754861093153,15.11532866,4216.6,4216.5,0.001]
[1754861093350,15.29587607,4216.6,4216.5,0.001]
[1754861093528,14.81487607,4216.6,4216.5,0.001]
[1754861094052,14.8154919,4216.6,4216.5,0.001]
[1754861094252,14.18364449,4216.6,4216.5,0.001]
[1754861095247,15.15522126,4216.6,4216.5,0.001]
[1754861096263,14.31602666,4216.6,4216.5,0.001]
[1754861096869,14.18364449,4216.6,4216.5,0.001]
[1754861097030,14.31607897,4216.6,4216.5,0.001]
[1754861099868,14.31685795,4216.6,4216.5,0.001]
[1754861100380,11.57908007,4216.6,4216.5,0.001]
[1754861100744,10.31685795,4216.6,4216.5,0.001]
[1754861101345,11.57908007,4216.6,4216.5,0.001]
[1754861101682,7.94908007,4216.6,4216.5,0.001]
[1754861101849,8.86847988,4216.6,4216.5,0.9129]
[1754861102179,4.47382328,4216.6,4216.5,0.9129]
[1754861102475,7.35542328,4216.6,4216.5,0.9129]
[1754861103432,11.35542328,4216.6,4216.5,0.9129]
[1754861104009,7.35542328,4216.6,4216.5,0.9129]
[1754861109640,9.72700227,4216.6,4216.5,0.9129]
[1754861110088,9.72700227,4216.6,4216.5,0.001]
[1754861110476,10.94816731,4216.6,4216.5,0.001]
[1754861110677,14.27129029,4216.6,4216.5,0.001]
[1754861110994,14.72259029,4216.6,4216.5,0.001]
[1754861111692,18.72259029,4216.6,4216.5,0.001]
[1754861111898,18.27129029,4216.6,4216.5,0.001]
[1754861112390,17.79029029,4216.6,4216.5,0.001]
[1754861113478,17.79038982,4216.6,4216.5,0.001]
[1754861115262,18.72268982,4216.6,4216.5,0.001]
[1754861116004,17.79038982,4216.6,4216.5,0.001]
[1754861117091,13.79038982,4216.6,4216.5,0.001]
[1754861120003,14.94826684,4216.6,4216.5,0.4524]
[1754861120507,13.72358778,4216.6,4216.5,0.9435]
[1754861121270,14.20258778,4216.6,4216.5,0.001]
[1754861121588,13.72358778,4216.6,4216.5,0.001]
[1754861122185,17.51841076,4216.6,4216.5,0.001]
[1754861123919,5.92163524,4216.5,4216.4,0.001]
[1754861124098,44.67077859,4216.5,4216.4,0.001]
[1754861124498,44.80306738,4216.5,4216.4,0.001]
[1754861124697,2.92180399,4216.2,4216.1,0.001]
[1754861124900,40.52067119,4216.2,4216.1,0.001]
[1754861125099,45.97884911,4216.2,4216.1,0.001]
[1754861125297,45.97884911,4216.2,4216.0,0.001]
[1754861125298,47.66095346,4216.2,4216.0,0.001]
[1754861125503,47.66095346,4216.2,4215.6,0.041]
[1754861125504,8.76420828,4215.7,4215.6,0.041]
[1754861125812,13.23361707,4215.7,4215.6,0.041]
[1754861125986,17.23361707,4215.7,4215.6,0.041]
[1754861126187,17.35429811,4215.7,4215.6,0.041]
[1754861126410,19.40388886,4215.7,4215.6,0.041]
[1754861126612,16.01176588,4215.7,4215.6,0.4924]
[1754861126813,16.01176588,4215.7,4215.6,0.041]
[1754861127421,13.62196322,4215.7,4215.6,0.4924]
[1754861127621,9.4904853,4215.7,4215.6,0.9835]
[1754861127826,10.7434,4215.7,4215.6,0.9835]
[1754861128003,7.1184,4215.7,4215.6,0.9835]
[1754861128192,10.7434,4215.7,4215.6,0.9835]
[1754861128521,3.7434,4215.7,4215.6,0.9835]
[1754861129893,3.625,4215.7,4215.6,0.9835]
[1754861130422,2.49067594,4216.5,4215.6,0.9835]
[1754861130423,3.625,4215.9,4215.8,2.37198622]
[1754861130599,3.625,4215.9,4215.8,0.9425]
[1754861130801,3.625,4216.0,4215.9,2.37193766]
[1754861131013,3.625,4216.0,4215.9,2.86303766]
[1754861131192,3.625,4216.0,4215.9,3.31443766]
[1754861131387,0.1184,4216.4,4216.0,2.37190611]
[1754861131593,3.625,4216.3,4216.0,2.37190611]
[1754861131914,3.625,4216.3,4216.1,0.9425]
[1754861132427,3.625,4216.3,4216.0,0.1184]
[1754861132624,3.625,4216.3,4216.2,0.9425]
[1754861132993,0.1184,4216.6,4216.2,0.9425]
[1754861133194,3.625,4216.5,4216.3,0.9425]
[1754861133412,3.625,4216.4,4216.0,0.1184]
[1754861134006,3.625,4216.4,4216.1,0.9425]
[1754861134192,3.625,4216.4,4216.0,0.1184]
[1754861134399,3.625,4216.4,4216.1,0.9425]
[1754861134600,6.89635895,4216.4,4216.1,0.4514]
[1754861135020,4.52466454,4216.4,4216.0,0.1184]
[1754861135224,2.49024495,4216.2,4215.7,0.4514]
[1754861135435,3.625,4216.1,4215.7,0.4514]
[1754861135602,3.625,4216.1,4215.8,0.4911]
[1754861136016,3.625,4216.1,4215.9,0.4514]
[1754861136697,3.625,4216.1,4216.0,0.4514]
[1754861136932,3.625,4216.1,4216.0,0.9425]
[1754861138434,0.1184,4216.2,4216.0,0.9425]
[1754861138645,3.624,4216.1,4215.9,2.37195685]
[1754861139207,3.624,4216.1,4216.0,1.0609]
[1754861140111,3.624,4216.2,4216.0,1.0609]
[1754861140310,3.624,4216.2,4216.1,0.9425]
[1754861142682,3.624,4216.2,4216.0,0.1184]
[1754861142958,3.624,4216.2,4215.6,0.041]
[1754861142959,0.9527,4216.1,4215.6,0.1594]
[1754861143135,2.3720489,4215.8,4215.6,0.041]
[1754861143322,0.9527,4216.0,4215.6,0.041]
[1754861143323,3.624,4215.7,4215.6,0.041]
[1754861143524,5.9960853,4215.7,4215.6,0.041]
[1754861143838,6.93999659,4215.7,4215.6,0.041]
[1754861144227,4.56791129,4215.7,4215.6,0.041]
[1754861156619,4.56591129,4215.7,4215.6,0.041]
[1754861156782,3.622,4215.7,4215.6,0.041]
[1754861157352,3.622,4215.7,4215.6,0.9491]
[1754861161666,3.622,4215.7,4215.6,0.4888]
[1754861167422,3.622,4215.7,4215.6,0.041]
[1754861173796,6.4675853,4215.7,4215.6,0.041]
[1754861174117,8.72123321,4215.7,4215.6,0.041]
[1754861175724,12.27123321,4215.7,4215.6,0.041]
[1754861176021,47.03849401,4215.7,4215.6,0.041]
[1754861176230,47.03835676,4215.7,4215.6,0.041]
[1754861177124,47.03809691,4215.7,4215.6,0.041]
[1754861177825,2.92231039,4215.3,4215.2,0.001]
[1754861177998,12.72444261,4215.3,4215.2,0.001]
[1754861178324,14.15883757,4215.3,4215.2,0.001]
[1754861178632,2.92259181,4214.8,4214.7,0.001]
[1754861178930,44.89822708,4214.8,4214.7,0.001]
[1754861179102,44.89822708,4214.8,4214.2,0.001]
[1754861179103,5.92264811,4214.7,4214.2,0.001]
[1754861179429,5.9227607,4214.5,4214.2,0.001]
[1754861179631,40.90529955,4214.4,4214.2,0.001]
[1754861179818,42.08165866,4214.4,4214.2,0.001]
[1754861179990,47.76522099,4214.4,4214.2,0.001]
[1754861180194,47.63326188,4214.4,4214.2,0.001]
[1754861180396,5.92309855,4213.9,4213.8,0.001]
[1754861180698,2.92321119,4213.7,4213.4,0.001]
[1754861180913,0.55,4213.5,4213.4,0.001]
[1754861181110,0.55,4213.5,4213.2,0.001]
[1754861181111,2.92343649,4213.3,4213.2,0.001]
[1754861181433,42.38655947,4213.3,4213.2,0.001]
[1754861181736,42.38655947,4213.3,4212.8,0.001]
[1754861181737,0.55,4213.0,4212.8,1e-08]
[1754861181899,39.54466184,4212.9,4212.8,1e-08]
[1754861182099,6.39212298,4212.7,4212.6,0.04]
[1754861182296,44.82233819,4212.7,4212.6,0.04]
[1754861182511,45.74833819,4212.7,4212.6,0.04]
[1754861184230,41.20133819,4212.7,4212.6,0.04]
[1754861184421,44.82233819,4212.7,4212.6,0.04]
[1754861184835,48.82233819,4212.7,4212.6,0.04]
[1754861185244,49.74833819,4212.7,4212.6,0.04]
[1754861186332,49.31053819,4212.7,4212.6,0.04]
[1754861187125,45.68953819,4212.7,4212.6,0.04]
[1754861187314,48.82333819,4212.7,4212.6,0.04]
[1754861188707,49.31153819,4212.7,4212.6,0.04]
[1754861188911,49.74933819,4212.7,4212.6,0.04]
[1754861189306,48.82333819,4212.7,4212.6,0.04]
[1754861194806,7.7404,4212.7,4212.6,0.9639]
[1754861195012,7.622,4212.7,4212.6,3.33773088]
[1754861195227,4.0,4212.7,4212.6,3.33773088]
[1754861195550,7.622,4212.7,4212.6,3.45613088]
[1754861195909,3.622,4212.7,4212.6,3.45613088]
[1754861196108,0.1184,4213.3,4213.1,2.37354]
[1754861196344,7.622,4213.2,4212.7,0.9239]
[1754861196514,7.622,4213.2,4212.9,2.37362047]
[1754861196710,3.622,4213.2,4212.6,0.1584]
[1754861196943,2.37377453,4212.7,4212.6,0.04]
[1754861197238,6.94392179,4212.7,4212.6,0.04]
[1754861197539,9.94392179,4212.7,4212.6,0.9639]
[1754861197931,9.94392179,4212.7,4212.6,0.04]
[1754861199346,9.94392179,4212.7,4212.6,0.5096]
[1754861199662,9.94392179,4212.7,4212.6,0.9639]
[1754861200064,7.57014726,4212.7,4212.6,0.9639]
[1754861200250,9.11417453,4212.7,4212.6,0.9639]
[1754861200632,9.11417453,4212.7,4212.6,0.5096]
[1754861201064,9.11417453,4212.7,4209.3,0.4696]
[1754861201065,0.55,4212.4,4209.3,0.4696]
[1754861201362,0.55,4210.5,4209.7,0.9239]
[1754861201536,5.37490285,4210.7,4209.8,0.9239]
[1754861201727,0.63267755,4211.8,4209.9,0.9239]
[1754861201929,3.674,4211.8,4210.0,0.9239]
[1754861202159,3.0,4211.7,4210.1,0.9239]
[1754861202367,3.0,4211.7,4209.9,2.37535166]
[1754861202368,2.37482712,4210.9,4209.9,2.37535166]
[1754861202571,3.0,4211.7,4210.2,0.9239]
[1754861202572,2.37497724,4210.6,4210.2,0.9239]
[1754861202735,2.37497724,4210.6,4209.7,2.37541967]
[1754861202935,2.37497724,4210.6,4210.3,0.9239]
[1754861203160,2.37497724,4210.6,4209.6,3.716]
[1754861203161,0.713484,4211.0,4210.4,0.9239]
[1754861203476,2.37501484,4210.5,4210.4,0.9239]
[1754861203969,2.37492704,4210.7,4210.4,0.9239]
[1754861204123,2.37495874,4210.6,4210.4,0.4543]
[1754861204329,2.37495874,4210.6,4210.5,0.4696]
[1754861205190,0.713566,4211.1,4210.5,0.9239]
[1754861205378,2.37467819,4211.1,4210.6,0.9239]
[1754861205581,2.37467819,4211.1,4210.3,2.37512728]
[1754861205750,3.0,4211.4,4210.4,1.16141273]
[1754861206094,3.0,4211.4,4210.5,0.9239]
[1754861206095,2.37467938,4211.1,4210.5,0.9239]
[1754861206447,2.37467938,4211.1,4210.6,0.4696]
[1754861206685,3.674,4211.5,4210.6,0.4696]
[1754861206841,2.37456367,4211.3,4210.6,0.4696]
[1754861207038,2.59354244,4211.2,4210.7,0.4543]
[1754861207343,2.59354244,4211.2,4210.8,0.4696]
[1754861207344,0.21909078,4211.1,4210.8,0.4696]
[1754861207564,0.21909078,4211.1,4210.4,0.23751273]
[1754861207739,0.21909078,4211.1,4210.9,0.9026]
[1754861208186,0.21909078,4211.1,4211.0,0.9026]
[1754861209084,0.5047846,4211.3,4210.4,0.69711273]
[1754861209085,3.89209078,4211.3,4210.4,0.69711273]
[1754861209383,2.59373082,4211.2,4210.0,0.443]
[1754861209582,2.37489957,4210.8,4210.0,0.443]
[1754861209785,2.37501393,4210.6,4209.7,0.443]
[1754861209993,30.21909078,4210.7,4209.6,0.04]
[1754861209994,43.675,4210.5,4209.6,0.04]
[1754861210285,2.3753571,4209.9,4209.6,0.04]
[1754861210491,2.59478814,4209.8,4209.6,0.04]
[1754861210701,2.37529691,4210.0,4209.6,0.04]
[1754861210917,2.37540975,4209.8,4209.6,0.04]
[1754861211059,0.21935103,4209.7,4209.6,0.04]
[1754861211259,2.59481721,4209.7,4209.6,0.04]
[1754861211472,0.21935103,4209.7,4209.6,0.04]
[1754861211790,2.59481721,4209.7,4209.6,0.04]
[1754861212183,0.21935103,4209.7,4209.6,0.04]
[1754861212355,0.21935103,4209.7,4209.6,0.483]
[1754861212700,0.33775103,4209.9,4209.6,0.483]
[1754861212901,0.33775103,4209.9,4209.7,0.443]
[1754861213258,0.33775103,4209.9,4209.6,0.04]
[1754861213458,0.33775103,4209.9,4209.7,0.9026]
[1754861213771,0.21935103,4210.2,4209.8,0.9026]
[1754861214077,0.21935103,4210.2,4209.9,0.443]
[1754861214585,2.04849404,4210.1,4209.9,0.443]
[1754861214766,0.21935103,4210.0,4209.9,0.443]
[1754861214962,0.21935103,4210.2,4209.7,0.1184]
[1754861215285,0.21935103,4210.2,4210.0,0.443]
[1754861215753,2.04849404,4210.1,4210.0,0.443]
[1754861215952,2.26784507,4210.1,4210.0,0.443]
[1754861216153,2.26784507,4210.1,4209.6,0.04]
[1754861216154,5.78663964,4210.1,4209.6,0.04]
[1754861216385,0.1184,4209.8,4209.6,0.04]
[1754861216593,2.37546618,4209.7,4209.6,0.04]
[1754861216791,0.21935103,4209.7,4209.6,0.04]
[1754861217086,3.23353354,4209.7,4209.6,0.04]
[1754861217793,6.90753354,4209.7,4209.6,0.04]
[1754861218506,7.93843354,4209.7,4209.6,0.04]
[1754861218699,0.55,4209.5,4209.1,0.1194]
[1754861218855,0.55,4209.5,4209.1,0.4606]
[1754861218856,0.21935103,4209.5,4209.1,0.4606]
[1754861219058,0.33775103,4209.5,4209.1,0.444]
[1754861219357,0.33775103,4209.5,4209.2,0.443]
[1754861219886,0.33775103,4209.5,4209.1,0.001]
[1754861220089,0.21935103,4209.5,4209.3,3.27823873]
[1754861220287,2.00849404,4209.6,4209.4,0.9026]
[1754861220592,2.00849404,4209.6,4209.5,3.27817904]
[1754861220804,2.00849404,4209.6,4209.5,3.75574506]
[1754861220963,0.1184,4210.5,4210.4,2.37507125]
[1754861221291,0.713567,4211.1,4210.4,0.9026]
[1754861221466,0.04,4211.9,4211.4,0.1184]
[1754861221787,0.04,4211.9,4211.5,0.443]
[1754861221993,0.61512203,4211.9,4211.6,0.443]
[1754861222195,0.61512203,4211.9,4211.4,0.1184]
[1754861222492,0.83388487,4211.9,4211.4,0.1184]
[1754861222859,3.20812402,4211.9,4211.4,0.1184]
[1754861223064,0.61512203,4211.9,4210.9,0.9026]
[1754861223379,0.1184,4211.6,4211.1,2.37465669]
[1754861223753,0.1184,4211.6,4211.2,0.9026]
[1754861224259,0.1184,4211.6,4211.2,0.443]
[1754861225000,0.1184,4211.6,4211.3,0.443]
[1754861225487,0.1184,4211.6,4211.2,0.4596]
[1754861225488,0.1184,4211.8,4211.4,0.9026]
[1754861225698,0.1184,4211.8,4211.5,0.443]
[1754861226284,0.1184,4211.8,4211.6,0.443]
[1754861226657,0.1184,4211.8,4211.2,2.37462006]
[1754861226884,0.1184,4211.8,4210.7,2.3748495]
[1754861226885,2.37444758,4211.6,4210.7,2.3748495]
[1754861227108,0.1184,4211.4,4210.8,0.1184]
[1754861227265,2.49291554,4211.4,4210.8,0.1184]
[1754861227464,0.1184,4211.4,4210.8,0.1184]
[1754861227762,2.37456997,4211.3,4210.8,0.1184]
[1754861228073,0.1184,4211.4,4210.8,0.1184]
[1754861228271,0.66768128,4211.4,4210.8,0.1184]
[1754861228500,2.37456367,4211.3,4210.8,0.1184]
[1754861228684,2.49292175,4211.4,4210.8,0.1184]
[1754861229058,2.3745763,4211.3,4210.8,0.1184]
[1754861229400,2.49291829,4211.4,4210.8,0.1184]
[1754861230313,2.37456768,4211.3,4210.8,0.1184]
[1754861230811,2.49291773,4211.4,4210.8,0.1184]
[1754861230968,0.1184,4211.4,4210.8,0.1184]
[1754861231167,0.04,4211.9,4211.1,0.1184]
[1754861231168,0.1584,4211.9,4211.1,0.1184]
[1754861231363,0.1584,4211.9,4211.5,2.37444268]
[1754861231583,0.1584,4211.9,4211.6,0.443]
[1754861231894,4.0,4211.7,4211.6,0.9026]
[1754861232310,0.1584,4211.9,4211.6,0.9026]
[1754861232495,0.1584,4211.9,4211.6,0.443]
[1754861233581,0.1584,4211.9,4211.4,0.1184]
[1754861233582,0.25325249,4211.8,4211.4,0.1184]
[1754861233770,2.37448662,4211.5,4211.1,0.1184]
[1754861233959,36.04433849,4211.7,4210.7,0.1184]
[1754861233960,0.1184,4211.3,4210.7,0.1184]
[1754861234180,0.1184,4210.9,4209.2,0.443]
[1754861234365,0.1184,4210.9,4209.1,0.001]
[1754861234366,2.37540975,4209.8,4209.3,0.1184]
[1754861234559,2.37540975,4209.8,4209.1,0.001]
[1754861234560,2.92574836,4209.2,4209.1,0.001]
[1754861234797,39.72014836,4209.2,4209.1,0.001]
[1754861235000,40.65044836,4209.2,4209.1,0.001]
[1754861235571,40.82846905,4209.2,4209.1,0.001]
[1754861235776,43.14550973,4209.2,4209.1,0.001]
[1754861236207,41.48718904,4209.2,4209.1,0.001]
[1754861236405,11.48718904,4209.2,4209.1,0.001]
[1754861236571,10.16954836,4209.2,4209.1,0.001]
[1754861236776,10.65044836,4209.2,4209.1,0.001]
[1754861238512,14.10044836,4209.2,4209.1,0.001]
[1754861239008,44.10044836,4209.2,4209.1,0.001]
[1754861240610,43.65104836,4209.2,4209.1,0.001]
[1754861240819,45.96808904,4209.2,4209.1,0.001]
[1754861241314,46.44278904,4209.2,4209.1,0.001]
[1754861241811,47.00268904,4209.2,4209.1,0.001]
[1754861243348,5.9258048,4209.1,4209.0,0.001]